[Event "Moscow-ch Women 2020"]
[Site "Moscow"]
[Date "2020.09.17"]
[Round "4.8"]
[White "Fedorova, Olesya"]
[Black "Dimitrova, Alexandra"]
[Result "1-0"]
[ECO "D38"]
[WhiteElo "1552"]
[BlackElo "2229"]
[Annotator "ChessBase"]
[PlyCount "65"]
[EventDate "2020.09.15"]
[EventType "swiss"]
[EventCountry "RUS"]
[TimeControl "5400+30"]

1. Nf3 {[%emt 0:00:00]} Nf6 {[%emt 0:00:00]} 2. c4 {[%emt 0:00:00]} e6 {[%emt 0:00:00]} 3. Nc3 {[%emt 0:00:00]} d5 {[%emt 0:01:20]} 4. d4 {[%emt 0:02:24]} Bb4 {[%emt 0:01:27]} 5. cxd5 {[%emt 0:00:16]} exd5 {[%emt 0:00:35]} 6. Qa4+ {[%emt 0:00:15]} Nc6 {[%emt 0:00:31]} 7. Bg5 {[%emt 0:00:56]} h6 {[%emt 0:01:04]} 8. Bxf6 {[%emt 0:00:19]} Qxf6 {[%emt 0:02:41]} 9. e3 {[%emt 0:00:35]} O-O {[%emt 0:02:14]} 10. Be2 {[%emt 0:00:47]} Rd8 {[%emt 0:04:10]} 11. O-O {[%emt 0:00:26]} Bf8 {[%emt 0:01:19]} 12. Rfc1 {[%emt 0:00:18]} Ne7 {[%emt 0:06:36]} 13. b4 {[%emt 0:00:15]} Nf5 {[%emt 0:20:33]} 14. b5 {[%emt 0:03:41]} Be6 {[%emt 0:09:27]} 15. Qb3 {[%emt 0:01:23]} g5 {[%emt 0:13:39]} 16. Na4 {[%emt 0:04:26]} Bd6 {[%emt 0:01:58]} 17. Nc5 {[%emt 0:02:26]} Rab8 {[%emt 0:01:08]} 18. a4 {[%emt 0:09:32]} g4 {[%emt 0:02:25]} 19. Ne5 {[%emt 0:04:25]} h5 {[%emt 0:06:03]} 20. Ncd3 {[%emt 0:02:13]} Qh6 {[%emt 0:06:21]} 21. Nc5 {[%emt 0:04:07]} Qg7 {[%emt 0:03:49]} 22. Qc3 {[%emt 0:03:36]} Re8 {[%emt 0:03:18]} 23. a5 {[%emt 0:07:19]} f6 {[%emt 0:02:31]} 24. Nxe6 {[%emt 0:03:09]} Rxe6 {[%emt 0:00:02]} 25. Nd3 {[%emt 0:00:34]} Qg5 {[%emt 0:01:06]} 26. Bf1 {[%emt 0:02:39]} h4 {[%emt 0:03:31]} 27. Nf4 {[%emt 0:02:02]} Re4 {[%emt 0:03:54]} 28. Qb3 {[%emt 0:05:17]} Nxd4 {[%emt 0:01:11]} 29. Qxd5+ {[%emt 0:00:21]} Qxd5 {[%emt 0:00:05]} 30. Nxd5 {[%emt 0:00:02]} Nb3 {[%emt 0:00:36]} 31. Nxf6+ {[%emt 0:00:08]} Kg7 {[%emt 0:00:38]} 32. Nxe4 {[%emt 0:00:13]} Nxc1 {[%emt 0:00:04]} 33. Rxc1 {[%emt 0:00:13]} 1-0

[Event "Moscow-ch Women 2020"]
[Site "Moscow"]
[Date "2020.09.17"]
[Round "4.10"]
[White "Petrova, Elizaveta"]
[Black "Strukova, Ksenia"]
[Result "1/2-1/2"]
[ECO "E73"]
[WhiteElo "1647"]
[BlackElo "1978"]
[Annotator "ChessBase"]
[PlyCount "104"]
[EventDate "2020.09.15"]
[EventType "swiss"]
[EventCountry "RUS"]
[TimeControl "5400+30"]

1. d4 {[%emt 0:00:00]} Nf6 {[%emt 0:00:00]} 2. c4 {[%emt 0:00:00]} g6 {[%emt 0:00:00]} 3. Nc3 {[%emt 0:00:00]} Bg7 {[%emt 0:00:00]} 4. e4 {[%emt 0:00:00]} d6 {[%emt 0:00:00]} 5. Be2 {[%emt 0:00:00]} e5 {[%emt 0:11:39]} 6. d5 {[%emt 0:01:06]} O-O {[%emt 0:09:38]} 7. Be3 {[%emt 0:00:17]} c6 {[%emt 0:02:53]} 8. g4 {[%emt 0:03:36]} cxd5 {[%emt 0:01:52]} 9. cxd5 {[%emt 0:01:07]} Qa5 {[%emt 0:09:07]} 10. f3 {[%emt 0:05:25]} Ne8 {[%emt 0:05:30]} 11. h4 {[%emt 0:08:49]} h6 {[%emt 0:08:52]} 12. Qd2 {[%emt 0:05:40]} Kh7 {[%emt 0:01:53]} 13. Bd3 {[%emt 0:10:25]} Na6 {[%emt 0:11:52]} 14. Rc1 {[%emt 0:02:37]} Bd7 {[%emt 0:01:31]} 15. Nge2 {[%emt 0:06:17]} Rc8 {[%emt 0:05:29]} 16. a3 {[%emt 0:12:53]} Nc5 {[%emt 0:11:03]} 17. Bc2 {[%emt 0:00:49]} Qd8 {[%emt 0:01:07]} 18. b4 {[%emt 0:01:58]} Na6 {[%emt 0:00:01]} 19. h5 {[%emt 0:03:09]} g5 {[%emt 0:00:13]} 20. Bd3 {[%emt 0:00:38]} Nac7 {[%emt 0:03:46]} 21. Bxa7 {[%emt 0:06:41]} Ra8 {[%emt 0:01:29]} 22. Qe3 {[%emt 0:05:07]} Qe7 {[%emt 0:03:37]} 23. b5 {[%emt 0:03:06]} Nf6 {[%emt 0:02:29]} 24. b6 {[%emt 0:01:10]} Nce8 {[%emt 0:01:26]} 25. a4 {[%emt 0:09:12]} Bc8 {[%emt 0:02:04]} 26. a5 {[%emt 0:03:33]} Nd7 {[%emt 0:00:06]} 27. Na4 {[%emt 0:00:38]} Rg8 {[%emt 0:02:03]} 28. Ng3 {[%emt 0:01:05]} Bf8 {[%emt 0:00:37]} 29. O-O {[%emt 0:00:51]} Nc5 {[%emt 0:01:23]} 30. Nxc5 {[%emt 0:02:01]} dxc5 {[%emt 0:00:01]} 31. Nf5 {[%emt 0:01:39]} Qd8 {[%emt 0:02:27]} 32. Rfd1 {[%emt 0:01:48]} f6 {[%emt 0:00:46]} 33. Bc4 {[%emt 0:01:16]} Bxf5 {[%emt 0:00:50]} 34. exf5 {[%emt 0:04:07]} Nd6 {[%emt 0:00:35]} 35. Bd3 {[%emt 0:00:00]} Nc8 {[%emt 0:00:27]} 36. a6 {[%emt 0:00:00]} Qd7 {[%emt 0:00:39]} 37. Bb5 {[%emt 0:00:34]} Qxb5 {[%emt 0:00:20]} 38. axb7 {[%emt 0:00:05]} c4 {[%emt 0:00:37]} 39. bxa8=Q {[%emt 0:01:51]} Bc5 {[%emt 0:00:02]} 40. Qxc5 {[%emt 0:00:00]} Qxc5+ {[%emt 0:00:01]} 41. Kg2 {[%emt 0:00:00]} Qe3 {[%emt 0:01:17]} 42. Qb7+ {[%emt 0:00:29]} Rg7 {[%emt 0:00:43]} 43. Qxc8 {[%emt 0:00:49]} Qe2+ {[%emt 0:00:10]} 44. Kg3 {[%emt 0:00:07]} e4 {[%emt 0:00:03]} 45. b7 {[%emt 0:00:56]} Qxf3+ {[%emt 0:00:10]} 46. Kh2 {[%emt 0:00:04]} Qf4+ {[%emt 0:01:03]} 47. Kg1 {[%emt 0:00:36]} Qg3+ {[%emt 0:00:24]} 48. Kf1 {[%emt 0:00:09]} Qf3+ {[%emt 0:00:38]} 49. Ke1 {[%emt 0:00:22]} e3 {[%emt 0:00:11]} 50. Rc2 {[%emt 0:00:50]} Qg3+ {[%emt 0:00:14]} 51. Kf1 {[%emt 0:00:25]} Qf3+ {[%emt 0:00:01]} 52. Ke1 {[%emt 0:00:43]} Qg3+ {[%emt 0:00:05]} 1/2-1/2

[Event "Moscow-ch Women 2020"]
[Site "Moscow"]
[Date "2020.09.19"]
[Round "5.8"]
[White "Dimitrova, Alexandra"]
[Black "Diakonova, Ekaterina"]
[Result "1/2-1/2"]
[ECO "B12"]
[WhiteElo "2229"]
[BlackElo "2209"]
[Annotator "ChessBase"]
[PlyCount "80"]
[EventDate "2020.09.15"]
[EventType "swiss"]
[EventCountry "RUS"]
[SourceTitle "playchess.com"]
[Source "ChessBase"]
[SourceQuality "1"]
[TimeControl "5400+30"]

1. e4 {[%emt 0:00:00]} c6 {[%emt 0:00:00]} 2. d4 {[%emt 0:00:00]} d5 {[%emt 0:00:00]} 3. e5 {[%emt 0:00:00]} Bf5 {[%emt 0:00:00]} 4. h4 {[%emt 0:00:00]} h5 {[%emt 0:00:00]} 5. Bd3 {[%emt 0:00:00]} Bxd3 {[%emt 0:00:00]} 6. Qxd3 {[%emt 0:00:00]} Qa5+ {[%emt 0:00:00]} 7. Nc3 {[%emt 0:00:01]} e6 {[%emt 0:00:00]} 8. Bg5 {[%emt 0:00:05]} c5 {[%emt 0:00:00]} 9. dxc5 {[%emt 0:03:48]} Bxc5 {[%emt 0:01:01]} 10. O-O-O {[%emt 0:02:15]} Nc6 {[%emt 0:18:59]} 11. Nh3 {[%emt 0:14:09]} Rc8 {[%emt 0:20:17]} 12. Kb1 {[%emt 0:04:45]} Nge7 {[%emt 0:07:34]} 13. Bxe7 {[%emt 0:11:28]} Nxe7 {[%emt 0:01:45]} 14. Ng5 {[%emt 0:05:38]} Nc6 {[%emt 0:11:30]} 15. Nxd5 {[%emt 0:19:25]} exd5 {[%emt 0:09:39]} 16. e6 {[%emt 0:00:36]} fxe6 {[%emt 0:01:26]} 17. Nxe6 {[%emt 0:07:55]} Ne7 {[%emt 0:02:53]} 18. Rhe1 {[%emt 0:08:21]} g6 {[%emt 0:14:25]} 19. c4 {[%emt 0:06:08]} Bxf2 {[%emt 0:03:14]} 20. Ng7+ {[%emt 0:08:18]} Kd8 {[%emt 0:02:46]} 21. Re2 {[%emt 0:01:23]} Bxh4 {[%emt 0:01:18]} 22. Qd4 {[%emt 0:01:39]} Bg3 {[%emt 0:01:07]} 23. Qf6 {[%emt 0:01:12]} Kc7 {[%emt 0:02:08]} 24. Rxe7+ {[%emt 0:01:07]} Kb8 {[%emt 0:00:01]} 25. Qxg6 {[%emt 0:01:39]} Bh4 {[%emt 0:00:13]} 26. Re5 {[%emt 0:01:59]} Qc7 {[%emt 0:01:51]} 27. Rexd5 {[%emt 0:00:30]} Rhg8 {[%emt 0:00:34]} 28. Rd7 {[%emt 0:00:34]} Qxc4 {[%emt 0:00:14]} 29. b3 {[%emt 0:00:45]} Qe2 {[%emt 0:00:28]} 30. Qd6+ {[%emt 0:00:35]} Ka8 {[%emt 0:00:02]} 31. Qd4 {[%emt 0:00:37]} Qc2+ {[%emt 0:01:16]} 32. Ka1 {[%emt 0:00:01]} Qxg2 {[%emt 0:00:38]} 33. Qxh4 {[%emt 0:01:00]} Rxg7 {[%emt 0:00:06]} 34. Rd8 {[%emt 0:00:25]} Rgc7 {[%emt 0:00:54]} 35. Qxh5 {[%emt 0:00:31]} Qg7+ {[%emt 0:00:14]} 36. Kb1 {[%emt 0:00:12]} a6 {[%emt 0:00:27]} 37. Qf5 {[%emt 0:00:30]} Qc3 {[%emt 0:00:29]} 38. Rxc8+ {[%emt 0:00:10]} Rxc8 {[%emt 0:00:01]} 39. Qd3 {[%emt 0:00:18]} Qxd3+ {[%emt 0:00:05]} 40. Rxd3 {[%emt 0:00:03]} Ka7 {[%emt 0:00:05]} 1/2-1/2

[Event "Moscow-ch Women 2020"]
[Site "Moscow"]
[Date "2020.09.19"]
[Round "5.9"]
[White "Miroshnik, Ekaterina"]
[Black "Fedorova, Olesya"]
[Result "1/2-1/2"]
[ECO "A05"]
[WhiteElo "2139"]
[BlackElo "1552"]
[Annotator "ChessBase"]
[PlyCount "207"]
[EventDate "2020.09.15"]
[EventType "swiss"]
[EventCountry "RUS"]
[SourceTitle "playchess.com"]
[Source "ChessBase"]
[SourceQuality "1"]
[TimeControl "5400+30"]

1. Nf3 {[%emt 0:00:00]} Nf6 {[%emt 0:00:00]} 2. b3 {[%emt 0:00:00]} e6 {[%emt 0:00:20]} 3. Bb2 {[%emt 0:00:04]} b6 {[%emt 0:00:26]} 4. e3 {[%emt 0:00:51]} Bb7 {[%emt 0:00:06]} 5. Be2 {[%emt 0:00:03]} d5 {[%emt 0:00:45]} 6. O-O {[%emt 0:00:08]} Nbd7 {[%emt 0:00:07]} 7. a4 {[%emt 0:00:06]} a5 {[%emt 0:00:26]} 8. d4 {[%emt 0:02:29]} Be7 {[%emt 0:03:12]} 9. Bd3 {[%emt 0:02:57]} O-O {[%emt 0:01:49]} 10. Nc3 {[%emt 0:04:42]} Rc8 {[%emt 0:06:55]} 11. Qe2 {[%emt 0:14:50]} c5 {[%emt 0:01:24]} 12. Nb5 {[%emt 0:01:37]} cxd4 {[%emt 0:13:39]} 13. exd4 {[%emt 0:02:59]} Nb8 {[%emt 0:01:11]} 14. Na7 {[%emt 0:05:01]} Rc7 {[%emt 0:00:21]} 15. Ne5 {[%emt 0:00:07]} Nc6 {[%emt 0:02:58]} 16. Naxc6 {[%emt 0:04:00]} Bxc6 {[%emt 0:00:02]} 17. Qf3 {[%emt 0:11:05]} Nd7 {[%emt 0:06:22]} 18. Qh3 {[%emt 0:01:56]} g6 {[%emt 0:01:46]} 19. Nxc6 {[%emt 0:11:06]} Rxc6 {[%emt 0:00:08]} 20. Rae1 {[%emt 0:03:00]} Bf6 {[%emt 0:03:11]} 21. Qg4 {[%emt 0:06:06]} Rc8 {[%emt 0:03:55]} 22. g3 {[%emt 0:02:12]} Nc5 {[%emt 0:04:24]} 23. dxc5 {[%emt 0:09:54]} Bxb2 {[%emt 0:00:11]} 24. cxb6 {[%emt 0:00:09]} Qxb6 {[%emt 0:00:18]} 25. Qd1 {[%emt 0:02:20]} Bd4 {[%emt 0:02:36]} 26. Kg2 {[%emt 0:03:27]} Bc3 {[%emt 0:03:22]} 27. Re2 {[%emt 0:01:12]} Qd4 {[%emt 0:00:47]} 28. f4 {[%emt 0:04:40]} Rce8 {[%emt 0:03:16]} 29. Ref2 {[%emt 0:01:03]} e5 {[%emt 0:06:27]} 30. fxe5 {[%emt 0:00:20]} Rxe5 {[%emt 0:00:34]} 31. Re2 {[%emt 0:02:47]} Rxe2+ {[%emt 0:02:01]} 32. Qxe2 {[%emt 0:00:08]} Qe5 {[%emt 0:00:33]} 33. Qf3 {[%emt 0:00:38]} Kg7 {[%emt 0:01:03]} 34. Rf2 {[%emt 0:01:43]} Bb4 {[%emt 0:09:51]} 35. Re2 {[%emt 0:01:16]} Qd6 {[%emt 0:00:33]} 36. Re3 {[%emt 0:01:08]} Bd2 {[%emt 0:00:56]} 37. Re2 {[%emt 0:00:07]} Bb4 {[%emt 0:00:05]} 38. Bb5 {[%emt 0:00:25]} Rc8 {[%emt 0:01:50]} 39. Rf2 {[%emt 0:00:54]} Rc7 {[%emt 0:01:12]} 40. Re2 {[%emt 0:00:52]} Rc3 {[%emt 0:05:05]} 41. Bd3 {[%emt 0:00:12]} Rc8 {[%emt 0:01:24]} 42. Qg4 {[%emt 0:00:26]} Rd8 {[%emt 0:01:47]} 43. Qd4+ {[%emt 0:00:58]} Qf6 {[%emt 0:00:21]} 44. Qa7 {[%emt 0:00:55]} Qc3 {[%emt 0:04:49]} 45. Rf2 {[%emt 0:00:55]} Rf8 {[%emt 0:00:19]} 46. Qd7 {[%emt 0:00:24]} Qc5 {[%emt 0:02:01]} 47. Bb5 {[%emt 0:00:32]} Qd6 {[%emt 0:03:46]} 48. Qxd6 {[%emt 0:00:35]} Bxd6 {[%emt 0:00:01]} 49. Rd2 {[%emt 0:00:08]} Rc8 {[%emt 0:00:14]} 50. Ba6 {[%emt 0:00:56]} Rc3 {[%emt 0:00:55]} 51. Bd3 {[%emt 0:00:31]} Bb4 {[%emt 0:00:23]} 52. Re2 {[%emt 0:00:13]} Rc7 {[%emt 0:00:16]} 53. Re5 {[%emt 0:00:22]} d4 {[%emt 0:00:41]} 54. Rd5 {[%emt 0:00:29]} Bc3 {[%emt 0:00:07]} 55. Rd8 {[%emt 0:00:36]} Re7 {[%emt 0:00:15]} 56. Rc8 {[%emt 0:00:11]} Bb4 {[%emt 0:00:53]} 57. Kf2 {[%emt 0:00:26]} Be1+ {[%emt 0:00:53]} 58. Kf3 {[%emt 0:00:11]} Bd2 {[%emt 0:01:18]} 59. Be4 {[%emt 0:00:43]} Bc3 {[%emt 0:00:32]} 60. Rc5 {[%emt 0:00:23]} Bb4 {[%emt 0:00:29]} 61. Rc4 {[%emt 0:00:05]} Bc3 {[%emt 0:00:07]} 62. Bd3 {[%emt 0:00:12]} Re3+ {[%emt 0:00:28]} 63. Kf2 {[%emt 0:00:07]} Re7 {[%emt 0:00:11]} 64. Rc6 {[%emt 0:00:05]} Be1+ {[%emt 0:00:18]} 65. Kf3 {[%emt 0:00:10]} Bc3 {[%emt 0:00:25]} 66. Bc4 {[%emt 0:00:09]} Bb4 {[%emt 0:00:25]} 67. Bd3 {[%emt 0:02:20]} Bc3 {[%emt 0:00:22]} 68. Rc5 {[%emt 0:00:44]} Bb4 {[%emt 0:00:14]} 69. Rd5 {[%emt 0:00:10]} Bc3 {[%emt 0:00:13]} 70. Kf2 {[%emt 0:00:36]} Be1+ {[%emt 0:00:19]} 71. Kf1 {[%emt 0:00:04]} Bc3 {[%emt 0:00:11]} 72. b4 {[%emt 0:02:08]} Bxb4 {[%emt 0:02:25]} 73. Rxd4 {[%emt 0:00:05]} Re1+ {[%emt 0:01:21]} 74. Kg2 {[%emt 0:00:07]} Ra1 {[%emt 0:00:57]} 75. Kh3 {[%emt 0:01:24]} Re1 {[%emt 0:01:20]} 76. Rc4 {[%emt 0:00:27]} Re3 {[%emt 0:00:54]} 77. Kg2 {[%emt 0:00:18]} Re7 {[%emt 0:01:07]} 78. Rc6 {[%emt 0:00:47]} Rd7 {[%emt 0:01:16]} 79. Kf3 {[%emt 0:00:15]} Bd6 {[%emt 0:00:25]} 80. Ke3 {[%emt 0:00:44]} Bc7 {[%emt 0:00:21]} 81. c4 {[%emt 0:00:21]} f5 {[%emt 0:00:24]} 82. Ra6 {[%emt 0:00:39]} Kf7 {[%emt 0:00:32]} 83. c5 {[%emt 0:00:12]} Re7+ {[%emt 0:01:08]} 84. Kd4 {[%emt 0:00:49]} Rd7+ {[%emt 0:00:09]} 85. Ke3 {[%emt 0:00:27]} Re7+ {[%emt 0:00:19]} 86. Kf3 {[%emt 0:00:15]} Rd7 {[%emt 0:00:27]} 87. Bc4+ {[%emt 0:00:09]} Kg7 {[%emt 0:00:17]} 88. Re6 {[%emt 0:00:35]} Kf8 {[%emt 0:00:26]} 89. Bb5 {[%emt 0:00:25]} Re7 {[%emt 0:00:13]} 90. Ra6 {[%emt 0:00:44]} Kg7 {[%emt 0:00:22]} 91. Bd3 {[%emt 0:00:32]} Re5 {[%emt 0:00:30]} 92. Rc6 {[%emt 0:00:18]} Re7 {[%emt 0:00:10]} 93. Bc4 {[%emt 0:00:54]} Kf8 {[%emt 0:00:40]} 94. Kf2 {[%emt 0:00:28]} Kg7 {[%emt 0:00:25]} 95. Be2 {[%emt 0:00:12]} Be5 {[%emt 0:00:44]} 96. Kf1 {[%emt 0:01:01]} Rc7 {[%emt 0:00:29]} 97. Rxc7+ {[%emt 0:00:04]} Bxc7 {[%emt 0:00:01]} 98. Bc4 {[%emt 0:00:19]} Kf6 {[%emt 0:00:04]} 99. Ke2 {[%emt 0:00:11]} Ke5 {[%emt 0:00:20]} 100. Bg8 {[%emt 0:00:21]} h6 {[%emt 0:00:12]} 101. Ke3 {[%emt 0:01:12]} g5 {[%emt 0:00:23]} 102. Bb3 {[%emt 0:00:17]} f4+ {[%emt 0:00:30]} 103. gxf4+ {[%emt 0:00:05]} gxf4+ {[%emt 0:00:01]} 104. Kf3 {[%emt 0:00:17]} 1/2-1/2

[Event "Moscow-ch Women 2020"]
[Site "Moscow"]
[Date "2020.09.19"]
[Round "5.10"]
[White "Strukova, Ksenia"]
[Black "Paramzina, Anastasya"]
[Result "1/2-1/2"]
[ECO "C44"]
[WhiteElo "1978"]
[BlackElo "2209"]
[Annotator "ChessBase"]
[PlyCount "51"]
[EventDate "2020.09.15"]
[EventType "swiss"]
[EventCountry "RUS"]
[SourceTitle "playchess.com"]
[Source "ChessBase"]
[SourceQuality "1"]
[TimeControl "5400+30"]

1. e4 {[%emt 0:00:00]} e5 {[%emt 0:08:11]} 2. Nf3 {[%emt 0:02:08]} Nc6 {[%emt 0:00:57]} 3. d3 {[%emt 0:18:57]} Nf6 {[%emt 1:22:22]} 4. g3 {[%emt 0:03:27]} d5 {[%emt 0:00:00]} 5. exd5 {[%emt 0:03:46]} Nxd5 {[%emt 0:00:00]} 6. Bg2 {[%emt 0:02:37]} g6 {[%emt 0:00:00]} 7. Bg5 {[%emt 0:10:01]} f6 {[%emt 0:00:00]} 8. Bd2 {[%emt 0:00:22]} Bg4 {[%emt 0:00:00]} 9. h3 {[%emt 0:02:57]} Be6 {[%emt 0:00:00]} 10. Nc3 {[%emt 0:02:06]} Qd7 {[%emt 0:00:00]} 11. a3 {[%emt 0:07:44]} Nxc3 {[%emt 0:00:00]} 12. Bxc3 {[%emt 0:00:26]} Bg7 {[%emt 0:00:00]} 13. h4 {[%emt 0:15:37]} Bg4 {[%emt 0:00:00]} 14. O-O {[%emt 0:02:27]} O-O-O {[%emt 0:00:00]} 15. Qe1 {[%emt 0:05:23]} Nd4 {[%emt 0:00:00]} 16. Bxd4 {[%emt 0:04:00]} exd4 {[%emt 0:00:00]} 17. Qa5 {[%emt 0:07:16]} Kb8 {[%emt 0:00:00]} 18. Rfe1 {[%emt 0:02:11]} Bxf3 {[%emt 0:01:00]} 19. Bxf3 {[%emt 0:00:07]} Rhe8 {[%emt 0:00:03]} 20. Qb4 {[%emt 0:01:28]} c6 {[%emt 0:01:12]} 21. Qd2 {[%emt 0:01:50]} f5 {[%emt 0:01:31]} 22. Qf4+ {[%emt 0:03:48]} Qc7 {[%emt 0:00:26]} 23. Qd2 {[%emt 0:01:50]} Qd7 {[%emt 0:02:44]} 24. Qf4+ {[%emt 0:00:26]} Qc7 {[%emt 0:00:13]} 25. Qd2 {[%emt 0:00:02]} Qd7 {[%emt 0:00:57]} 26. Qf4+ {[%emt 0:00:06]} 1/2-1/2

[Event "Moscow-ch Women 2020"]
[Site "Moscow"]
[Date "2020.09.21"]
[Round "7.8"]
[White "Merkulova, Viktoria"]
[Black "Fedorova, Olesya"]
[Result "0-1"]
[ECO "B22"]
[WhiteElo "1436"]
[BlackElo "1552"]
[Annotator "NA RC"]
[PlyCount "92"]
[EventDate "2020.09.15"]
[EventType "swiss"]
[EventCountry "RUS"]
[SourceTitle "playchess.com"]
[Source "ChessBase"]
[SourceQuality "1"]
[TimeControl "5400+30"]

1. e4 {[%emt 0:00:00]} c5 {[%emt 0:00:00]} 2. c3 {[%emt 0:00:00]} Nf6 {[%emt 0:00:00]} 3. e5 {[%emt 0:00:00]} Nd5 {[%emt 0:00:00]} 4. d4 {[%emt 0:00:01]} cxd4 {[%emt 0:00:00]} 5. Nf3 {[%emt 0:00:06]} Nc6 {[%emt 0:00:11]} 6. cxd4 {[%emt 0:00:08]} d6 {[%emt 0:00:05]} 7. Bc4 {[%emt 0:00:13]} dxe5 {[%emt 0:00:08]} 8. dxe5 {[%emt 0:00:26]} Ndb4 {[%emt 0:00:15]} 9. Qb3 {[%emt 0:02:59]} e6 {[%emt 0:00:17]} 10. O-O {[%emt 0:05:47]} Na5 {[%emt 0:01:40]} 11. Bb5+ {[%emt 0:02:12]} Bd7 {[%emt 0:00:14]} 12. Qa4 {[%emt 0:01:11]} Bxb5 {[%emt 0:00:18]} 13. Qxb5+ {[%emt 0:00:09]} Nac6 {[%emt 0:01:09]} 14. a3 {[%emt 0:03:04]} a6 {[%emt 0:09:33]} 15. Qc4 {[%emt 0:01:57]} Qd3 {[%emt 0:04:22]} 16. Qc3 {[%emt 0:01:58]} Qxc3 {[%emt 0:01:53]} 17. bxc3 {[%emt 0:02:13]} Nd3 {[%emt 0:00:37]} 18. Nbd2 {[%emt 0:02:20]} Ncxe5 {[%emt 0:01:30]} 19. Nxe5 {[%emt 0:00:57]} Nxe5 {[%emt 0:00:01]} 20. Rb1 {[%emt 0:00:22]} b5 {[%emt 0:01:45]} 21. a4 {[%emt 0:01:34]} bxa4 {[%emt 0:01:10]} 22. Ne4 {[%emt 0:08:25]} Nc4 {[%emt 0:08:53]} 23. Bf4 {[%emt 0:02:55]} Be7 {[%emt 0:04:58]} 24. Rb7 {[%emt 0:00:42]} Rd8 {[%emt 0:13:44]} 25. Ra7 {[%emt 0:02:15]} a3 {[%emt 0:02:46]} 26. Ra1 {[%emt 0:02:05]} a5 {[%emt 0:04:28]} 27. Kf1 {[%emt 0:02:07]} h6 {[%emt 0:06:34]} 28. Rc7 {[%emt 0:01:37]} Nb2 {[%emt 0:01:47]} 29. Ra7 {[%emt 0:01:39]} f5 {[%emt 0:01:21]} 30. Ng3 {[%emt 0:01:28]} a4 {[%emt 0:09:20]} 31. Be5 {[%emt 0:03:47]} Rg8 {[%emt 0:03:17]} 32. Nh5 {[%emt 0:01:09]} Kf7 {[%emt 0:04:58]} 33. Bxg7 {[%emt 0:03:07]} Rd1+ {[%emt 0:01:54]} 34. Rxd1 {[%emt 0:00:11]} Nxd1 {[%emt 0:00:02]} 35. Bf6 {[%emt 0:00:44]} a2 {[%emt 0:06:37]} 36. c4 {[%emt 0:03:49]} Re8 {[%emt 0:03:36]} 37. Ke2 {[%emt 0:02:00]} Kg6 {[%emt 0:01:04]} 38. Ba1 {[%emt 0:02:32]} Kxh5 {[%emt 0:00:32]} 39. Kxd1 {[%emt 0:00:19]} a3 {[%emt 0:00:52]} 40. Kc2 {[%emt 0:01:07]} Bc5 {[%emt 0:02:39]} 41. Ra6 {[%emt 0:00:59]} Rb8 {[%emt 0:02:19]} 42. Ra5 {[%emt 0:01:46]} Rb1 {[%emt 0:02:50]} 43. Bc3 {[%emt 0:04:26]} Bb4 {[%emt 0:00:39]} 44. g4+ {[%emt 0:01:59]} Kxg4 {[%emt 0:00:32]} 45. h3+ {[%emt 0:00:34]} Kh5 {[%emt 0:00:13]} 46. Bxb4 {[%emt 0:00:39]} a1=Q {[%emt 0:00:15]} 0-1